Workbook

Sheet Список складских запасов
B1: СПИСОК СКЛАДСКИХ ЗАПАСОВ
B2: ОБЩАЯ СТОИМОСТЬ ЗАПАСОВ | C2: ТОВАРНЫЕ ПОЗИЦИИ: | D2: КОЛ-ВО КОНТЕЙНЕРОВ: | E2: СПИСОК ТОВАРНЫХ ПОДБОРОВ | F2: ПРОСМОТР КОНТЕЙНЕРОВ
B3: =SUM(ИнвентарнаяВедомость[Стоимость запасов]) -> 297586 | C3: =COUNTA(ИнвентарнаяВедомость[ОПИСАНИЕ]) -> 11 | D3: =SUMPRODUCT((1/COUNTIF(ИнвентарнаяВедомость[№ КОНТЕЙНЕРА],ИнвентарнаяВедомость[№ КОНТЕЙНЕРА]&""))) -> 6
B4: SKU | C4: ОПИСАНИЕ | D4: № КОНТЕЙНЕРА | E4: РАСПОЛОЖЕНИЕ | F4: БЛОК | G4: КОЛ-ВО | H4: КОЛ-ВО ПОВТОРНОГО ЗАКАЗА | I4: СТОИМОСТЬ | J4: Стоимость запасов | K4: ПОВТОРНЫЙ ЗАКАЗ
B5: SP7875 | C5: Пункт 1 | D5: T345 | E5: =IFERROR(VLOOKUP(ИнвентарнаяВедомость[[#This Row],[№ КОНТЕЙНЕРА]],ПросмотрКонтейнеров[],3,FALSE),"") -> Ряд 2, ячейка 1 | F5: Каждый | G5: 20 | H5: 10 | I5: 1920 | J5: =ИнвентарнаяВедомость[[#This Row],[КОЛ-ВО]]*ИнвентарнаяВедомость[[#This Row],[СТОИМОСТЬ]] -> 38400 | K5: =IFERROR(IF(ИнвентарнаяВедомость[[#This Row],[КОЛ-ВО]]<=ИнвентарнаяВедомость[[#This Row],[КОЛ-ВО ПОВТОРНОГО ЗАКАЗА]],1,0),0) -> 0
B6: TR87680 | C6: Пункт 2 | D6: T345 | E6: =IFERROR(VLOOKUP(ИнвентарнаяВедомость[[#This Row],[№ КОНТЕЙНЕРА]],ПросмотрКонтейнеров[],3,FALSE),"") -> Ряд 2, ячейка 1 | F6: Каждый | G6: 30 | H6: 15 | I6: 2560 | J6: =ИнвентарнаяВедомость[[#This Row],[КОЛ-ВО]]*ИнвентарнаяВедомость[[#This Row],[СТОИМОСТЬ]] -> 76800 | K6: =IFERROR(IF(ИнвентарнаяВедомость[[#This Row],[КОЛ-ВО]]<=ИнвентарнаяВедомость[[#This Row],[КОЛ-ВО ПОВТОРНОГО ЗАКАЗА]],1,0),0) -> 0
B7: MK676554 | C7: Пункт 3 | D7: T5789 | E7: =IFERROR(VLOOKUP(ИнвентарнаяВедомость[[#This Row],[№ КОНТЕЙНЕРА]],ПросмотрКонтейнеров[],3,FALSE),"") -> Ряд 1, ячейка 1 | F7: Каждый | G7: 10 | H7: 5 | I7: 325 | J7: =ИнвентарнаяВедомость[[#This Row],[КОЛ-ВО]]*ИнвентарнаяВедомость[[#This Row],[СТОИМОСТЬ]] -> 3250 | K7: =IFERROR(IF(ИнвентарнаяВедомость[[#This Row],[КОЛ-ВО]]<=ИнвентарнаяВедомость[[#This Row],[КОЛ-ВО ПОВТОРНОГО ЗАКАЗА]],1,0),0) -> 0
B8: YE98767 | C8: Пункт 4 | D8: T9876 | E8: =IFERROR(VLOOKUP(ИнвентарнаяВедомость[[#This Row],[№ КОНТЕЙНЕРА]],ПросмотрКонтейнеров[],3,FALSE),"") -> Ряд 3, ячейка 2 | F8: Поле (10 ct) | G8: 40 | H8: 10 | I8: 960 | J8: =ИнвентарнаяВедомость[[#This Row],[КОЛ-ВО]]*ИнвентарнаяВедомость[[#This Row],[СТОИМОСТЬ]] -> 38400 | K8: =IFERROR(IF(ИнвентарнаяВедомость[[#This Row],[КОЛ-ВО]]<=ИнвентарнаяВедомость[[#This Row],[КОЛ-ВО ПОВТОРНОГО ЗАКАЗА]],1,0),0) -> 0
B9: XR23423 | C9: Пункт 5 | D9: T098 | E9: =IFERROR(VLOOKUP(ИнвентарнаяВедомость[[#This Row],[№ КОНТЕЙНЕРА]],ПросмотрКонтейнеров[],3,FALSE),"") -> Ряд 3, ячейка 1 | F9: Каждый | G9: 12 | H9: 10 | I9: 1664 | J9: =ИнвентарнаяВедомость[[#This Row],[КОЛ-ВО]]*ИнвентарнаяВедомость[[#This Row],[СТОИМОСТЬ]] -> 19968 | K9: =IFERROR(IF(ИнвентарнаяВедомость[[#This Row],[КОЛ-ВО]]<=ИнвентарнаяВедомость[[#This Row],[КОЛ-ВО ПОВТОРНОГО ЗАКАЗА]],1,0),0) -> 0
B10: PW98762 | C10: Пункт 6 | D10: T345 | E10: =IFERROR(VLOOKUP(ИнвентарнаяВедомость[[#This Row],[№ КОНТЕЙНЕРА]],ПросмотрКонтейнеров[],3,FALSE),"") -> Ряд 2, ячейка 1 | F10: Каждый | G10: 7 | H10: 10 | I10: 3200 | J10: =ИнвентарнаяВедомость[[#This Row],[КОЛ-ВО]]*ИнвентарнаяВедомость[[#This Row],[СТОИМОСТЬ]] -> 22400 | K10: =IFERROR(IF(ИнвентарнаяВедомость[[#This Row],[КОЛ-ВО]]<=ИнвентарнаяВедомость[[#This Row],[КОЛ-ВО ПОВТОРНОГО ЗАКАЗА]],1,0),0) -> 1
B11: BM87684 | C11: Пункт 7 | D11: T349 | E11: =IFERROR(VLOOKUP(ИнвентарнаяВедомость[[#This Row],[№ КОНТЕЙНЕРА]],ПросмотрКонтейнеров[],3,FALSE),"") -> Ряд 1, ячейка 2 | F11: Каждый | G11: 10 | H11: 5 | I11: 640 | J11: =ИнвентарнаяВедомость[[#This Row],[КОЛ-ВО]]*ИнвентарнаяВедомость[[#This Row],[СТОИМОСТЬ]] -> 6400 | K11: =IFERROR(IF(ИнвентарнаяВедомость[[#This Row],[КОЛ-ВО]]<=ИнвентарнаяВедомость[[#This Row],[КОЛ-ВО ПОВТОРНОГО ЗАКАЗА]],1,0),0) -> 0
B12: BH67655 | C12: Пункт 8 | D12: T5789 | E12: =IFERROR(VLOOKUP(ИнвентарнаяВедомость[[#This Row],[№ КОНТЕЙНЕРА]],ПросмотрКонтейнеров[],3,FALSE),"") -> Ряд 1, ячейка 1 | F12: Каждый | G12: 19 | H12: 10 | I12: 192 | J12: =ИнвентарнаяВедомость[[#This Row],[КОЛ-ВО]]*ИнвентарнаяВедомость[[#This Row],[СТОИМОСТЬ]] -> 3648 | K12: =IFERROR(IF(ИнвентарнаяВедомость[[#This Row],[КОЛ-ВО]]<=ИнвентарнаяВедомость[[#This Row],[КОЛ-ВО ПОВТОРНОГО ЗАКАЗА]],1,0),0) -> 0
B13: WT98768 | C13: Пункт 9 | D13: T9875 | E13: =IFERROR(VLOOKUP(ИнвентарнаяВедомость[[#This Row],[№ КОНТЕЙНЕРА]],ПросмотрКонтейнеров[],3,FALSE),"") -> Ряд 2, ячейка 2 | F13: Упаковка (5 ct) | G13: 20 | H13: 30 | I13: 896 | J13: =ИнвентарнаяВедомость[[#This Row],[КОЛ-ВО]]*ИнвентарнаяВедомость[[#This Row],[СТОИМОСТЬ]] -> 17920 | K13: =IFERROR(IF(ИнвентарнаяВедомость[[#This Row],[КОЛ-ВО]]<=ИнвентарнаяВедомость[[#This Row],[КОЛ-ВО ПОВТОРНОГО ЗАКАЗА]],1,0),0) -> 1
B14: TS3456 | C14: Пункт 10 | D14: T349 | E14: =IFERROR(VLOOKUP(ИнвентарнаяВедомость[[#This Row],[№ КОНТЕЙНЕРА]],ПросмотрКонтейнеров[],3,FALSE),"") -> Ряд 1, ячейка 2 | F14: Каждый | G14: 15 | H14: 8 | I14: 3840 | J14: =ИнвентарнаяВедомость[[#This Row],[КОЛ-ВО]]*ИнвентарнаяВедомость[[#This Row],[СТОИМОСТЬ]] -> 57600 | K14: =IFERROR(IF(ИнвентарнаяВедомость[[#This Row],[КОЛ-ВО]]<=ИнвентарнаяВедомость[[#This Row],[КОЛ-ВО ПОВТОРНОГО ЗАКАЗА]],1,0),0) -> 0
B15: WDG123 | C15: Пункт 11 | D15: T349 | E15: =IFERROR(VLOOKUP(ИнвентарнаяВедомость[[#This Row],[№ КОНТЕЙНЕРА]],ПросмотрКонтейнеров[],3,FALSE),"") -> Ряд 1, ячейка 2 | F15: Каждый | G15: 25 | H15: 15 | I15: 512 | J15: =ИнвентарнаяВедомость[[#This Row],[КОЛ-ВО]]*ИнвентарнаяВедомость[[#This Row],[СТОИМОСТЬ]] -> 12800 | K15: =IFERROR(IF(ИнвентарнаяВедомость[[#This Row],[КОЛ-ВО]]<=ИнвентарнаяВедомость[[#This Row],[КОЛ-ВО ПОВТОРНОГО ЗАКАЗА]],1,0),0) -> 0

Sheet Список товарных подборов
B1: СПИСОК ПОДБОРОВ ТОВАРА
C2: СПИСОК ЗАПАСОВ
B4: № ЗАКАЗА | C4: SKU | D4: КОЛ-ВО ДЛЯ ПОДБОРА | E4: ДОСТУПНОЕ КОЛ-ВО | F4: ОПИСАНИЕ ПОЗИЦИИ | G4: БЛОК | H4: № КОНТЕЙНЕРА | I4: РАСПОЛОЖЕНИЕ
B5: TP001-1 | C5: SP7875 | D5: 3 | E5: =IFERROR(VLOOKUP(СписокТоварныхПодборов[SKU],ИнвентарнаяВедомость[],6,FALSE),"") -> 20 | F5: =IFERROR(VLOOKUP(СписокТоварныхПодборов[SKU],ИнвентарнаяВедомость[],2,FALSE),"") -> Пункт 1 | G5: =IFERROR(VLOOKUP(СписокТоварныхПодборов[SKU],ИнвентарнаяВедомость[],5,FALSE),"") -> Каждый | H5: =IFERROR(VLOOKUP(СписокТоварныхПодборов[SKU],ИнвентарнаяВедомость[],3,FALSE),"") -> T345 | I5: =IFERROR(VLOOKUP(СписокТоварныхПодборов[SKU],ИнвентарнаяВедомость[],4,FALSE),"") -> Ряд 2, ячейка 1
B6: TP001-1 | C6: YE98767 | D6: 1 | E6: =IFERROR(VLOOKUP(СписокТоварныхПодборов[SKU],ИнвентарнаяВедомость[],6,FALSE),"") -> 40 | F6: =IFERROR(VLOOKUP(СписокТоварныхПодборов[SKU],ИнвентарнаяВедомость[],2,FALSE),"") -> Пункт 4 | G6: =IFERROR(VLOOKUP(СписокТоварныхПодборов[SKU],ИнвентарнаяВедомость[],5,FALSE),"") -> Поле (10 ct) | H6: =IFERROR(VLOOKUP(СписокТоварныхПодборов[SKU],ИнвентарнаяВедомость[],3,FALSE),"") -> T9876 | I6: =IFERROR(VLOOKUP(СписокТоварныхПодборов[SKU],ИнвентарнаяВедомость[],4,FALSE),"") -> Ряд 3, ячейка 2
B7: TP001-1 | C7: BM87684 | D7: 2 | E7: =IFERROR(VLOOKUP(СписокТоварныхПодборов[SKU],ИнвентарнаяВедомость[],6,FALSE),"") -> 10 | F7: =IFERROR(VLOOKUP(СписокТоварныхПодборов[SKU],ИнвентарнаяВедомость[],2,FALSE),"") -> Пункт 7 | G7: =IFERROR(VLOOKUP(СписокТоварныхПодборов[SKU],ИнвентарнаяВедомость[],5,FALSE),"") -> Каждый | H7: =IFERROR(VLOOKUP(СписокТоварныхПодборов[SKU],ИнвентарнаяВедомость[],3,FALSE),"") -> T349 | I7: =IFERROR(VLOOKUP(СписокТоварныхПодборов[SKU],ИнвентарнаяВедомость[],4,FALSE),"") -> Ряд 1, ячейка 2
B8: TP001-1 | C8: TS3456 | D8: 6 | E8: =IFERROR(VLOOKUP(СписокТоварныхПодборов[SKU],ИнвентарнаяВедомость[],6,FALSE),"") -> 15 | F8: =IFERROR(VLOOKUP(СписокТоварныхПодборов[SKU],ИнвентарнаяВедомость[],2,FALSE),"") -> Пункт 10 | G8: =IFERROR(VLOOKUP(СписокТоварныхПодборов[SKU],ИнвентарнаяВедомость[],5,FALSE),"") -> Каждый | H8: =IFERROR(VLOOKUP(СписокТоварныхПодборов[SKU],ИнвентарнаяВедомость[],3,FALSE),"") -> T349 | I8: =IFERROR(VLOOKUP(СписокТоварныхПодборов[SKU],ИнвентарнаяВедомость[],4,FALSE),"") -> Ряд 1, ячейка 2
B9: TP001-1 | C9: MK676554 | D9: 3 | E9: =IFERROR(VLOOKUP(СписокТоварныхПодборов[SKU],ИнвентарнаяВедомость[],6,FALSE),"") -> 10 | F9: =IFERROR(VLOOKUP(СписокТоварныхПодборов[SKU],ИнвентарнаяВедомость[],2,FALSE),"") -> Пункт 3 | G9: =IFERROR(VLOOKUP(СписокТоварныхПодборов[SKU],ИнвентарнаяВедомость[],5,FALSE),"") -> Каждый | H9: =IFERROR(VLOOKUP(СписокТоварныхПодборов[SKU],ИнвентарнаяВедомость[],3,FALSE),"") -> T5789 | I9: =IFERROR(VLOOKUP(СписокТоварныхПодборов[SKU],ИнвентарнаяВедомость[],4,FALSE),"") -> Ряд 1, ячейка 1

Sheet Просмотр контейнеров
B1: ПРОСМОТР КОНТЕЙНЕРОВ
B2: ИНВЕНТАРНЫЙ СПИСОК
B4: № КОНТЕЙНЕРА | C4: ОПИСАНИЕ | D4: РАСПОЛОЖЕНИЕ | E4: ШИРИНА | F4: ВЫСОТА | G4: ДЛИНА
B5: T345 | C5: Большой контейнер | D5: Ряд 2, ячейка 1 | E5: 50 | F5: 10 | G5: 10
B6: T5789 | C6: Маленький контейнер | D6: Ряд 1, ячейка 1 | E6: 25 | F6: 5 | G6: 5
B7: T9876 | C7: Большой контейнер | D7: Ряд 3, ячейка 2 | E7: 50 | F7: 10 | G7: 10
B8: T098 | C8: Средний контейнер | D8: Ряд 3, ячейка 1 | E8: 30 | F8: 7 | G8: 10
B9: T349 | C9: Маленький контейнер | D9: Ряд 1, ячейка 2 | E9: 25 | F9: 5 | G9: 5
B10: T5789 | C10: Большой контейнер | D10: Ряд 4, ячейка 5 | E10: 50 | F10: 10 | G10: 10
B11: T9875 | C11: Большой контейнер | D11: Ряд 2, ячейка 2 | E11: 50 | F11: 10 | G11: 10
